Cogmind - Beta 17 @@@ ROGUE MODE // 2026.06.26 @ 16:19:16 Player: beans Result: Destroyed by Y-54 Guardian with Gatling Laser Performance ------------- Evolutions (0) 0 Regions Visited (3) 600 Robots Destroyed (23) 115 Value Destroyed (639) 639 Prototype IDs (9) 180 Alien Tech Used (0) 0 Bonus (5000) 5000 TOTAL SCORE: 6534 Bonus ------- Prayed to X0-1V1 5000 Cogmind --------- Core Integrity 0/250 Matter 284/300 Energy 100/100 System Corruption 0% Temperature Cool (12) Movement Flying (37) Location -7/Recycling Parts ------- > --- POWER (1) -------- (None) > --- PROPULSION (2) --- Biomechanical Wings (fused) Biomechanical Wings (fused) > --- UTILITY (2) ------ Self-contained Transmogrifier X0-1V1's Piety Tracker > --- WEAPON (2) ------- Subdweller Machine Gun Chainsword (fused) > --- INVENTORY (5) ---- Cobbler Unit Explosive Trap Explosive Trap Peak State ------------ > --- POWER ------------ Angular Momentum Engine > --- PROPULSION ------- Biomechanical Wings Biomechanical Wings > --- UTILITY ---------- Self-contained Transmogrifier X0-1V1's Piety Tracker > --- WEAPON ----------- Improved EM Pulse Cannon Improved EM Pulse Cannon > --- INVENTORY -------- Protomatter Armored Wheel Armored Wheel Light Humpback [Rating: 47] Favorites ----------- Power Ion Engine Engine Ion Engine Power Core Light Fission Core Propulsion Light Treads Treads Light Treads Wheel Armored Wheel Flight Unit Biomechanical Wings Utility X0-1V1's Piety Tracker Device X0-1V1's Piety Tracker Storage Small Storage Unit Processor Makeshift Targeting Computer Weapon Light Assault Rifle Energy Gun Heavy EM Pulse Gun Energy Cannon Improved EM Pulse Cannon Ballistic Gun Light Assault Rifle Special Weapon Welding Torch Impact Weapon Flail Slashing Weapon Chainsword Build | -11 -10 -10 -7 ------- Run | Yrd Mat Sub Rec Slots Evolved . | . . . . Power . | . . . . Propulsion . | . . . . Utility . | . . . . Weapon . | . . . . Parts Attached 16 | 6 2 7 1 Power 1 | 1 . . . Engine 1 | 1 . . . Core . | . . . . Reactor . | . . . . Propulsion 2 | 2 . . . Treads 2 | 2 . . . Leg . | . . . . Wheel . | . . . . Hover . | . . . . Flight . | . . . . Utility 5 | 1 2 2 . Device 4 | . 2 2 . Storage 1 | 1 . . . Processor . | . . . . Hackware . | . . . . Protection . | . . . . Artifact . | . . . . Weapon 8 | 2 . 5 1 Energy Gun 1 | . . 1 . Energy Cannon . | . . . . Ballistic Gun 5 | 2 . 2 1 Ballistic Cannon . | . . . . Launcher . | . . . . Special Weapon 1 | . . 1 . Impact Weapon 1 | . . 1 . Slashing Weapon . | . . . . Piercing Weapon . | . . . . Special Melee Weapon . | . . . . Unidentified Prototypes 1 | . 1 . . Parts Lost 8 | . . 6 2 Power 2 | . . 1 1 Propulsion 2 | . . 2 . Utility 1 | . . 1 . Weapon 3 | . . 2 1 Highest Loss Streak 2 | . . 1 2 To Critical Strikes . | . . . . Average Backups 4 | 1 1 4 1 Power . | . . . . Propulsion . | . . . . Utility 1 | . . 1 1 Weapon 1 | . 1 2 . Tool/Special . | . . . . Unused Backups 43 | . . 42 1 Power 4 | . . 4 . Propulsion 9 | . . 9 . Utility 15 | . . 14 1 Weapon 15 | . . 15 . Tool/Special . | . . . . Average Slot Usage (%) 96 | . 94 96 93 Engine 12 | . 14 11 12 Core 1 | . . 1 . Treads 14 | . 28 13 . Flight 10 | . . 11 28 Device 18 | . 8 19 28 Storage 8 | . 14 7 . Energy Gun 2 | . . 3 . Energy Cannon 6 | . . 7 10 Ballistic Gun 14 | . 28 13 . Impact Weapon 1 | . . 1 . Peak Build Rating 47 | 6 19 47 46 Average Rating 27 | 4 9 31 44 On Entrance 17 | . 6 19 46 Avg Prop Armor Cover (%) 11 | . . 11 . Naked Turns . | . . . . Heaviest Build 28 | 12 13 28 21 Greatest Support 40 | 40 40 40 12 Greatest Overweight (x) 2 | . . 2 1 Average Overweight (x) . | . . . 1 Largest Inventory Capacity 8 | 8 8 8 5 Average Capacity 6 | 6 8 6 5 Most Carried 8 | 5 5 8 5 Average Carried 5 | 1 1 5 4 Final Capacity 8 | 8 8 5 5 Final Carried 5 | 1 5 5 4 Transmogrified Parts 16 | . . 16 . Integrity Recovered 110 | . . 110 . Class Distribution -------------------- 100% | Mutant Dominant Class ---------------- Mutant | -10/Materials Mutant | -10/Subcaves Mutant | -7/Recycling Resources | -11 -10 -10 -7 ----------- Run | Yrd Mat Sub Rec Matter Collected 734 | 282 78 374 . Remotely . | . . . . Salvage Created 931 | 149 195 587 . Parts 57 | 10 11 36 . Haulers Intercepted . | . . . . Recyclers Shooed . | . . . . Parts Field Recycled . | . . . . Retrieved Matter . | . . . . Parts Self-Destructed 5 | . . 5 . Prevented 4 | . . 4 . Parts Restored . | . . . . Kills | -11 -10 -10 -7 ------- Run | Yrd Mat Sub Rec Combat Hostiles Destroyed 16 | . 4 12 . Guns 13 | . 4 9 . Cannons 3 | . . 3 . Classes Destroyed 9 | 3 2 4 . Worker 2 | 2 . . . Builder 1 | . 1 . . Tunneler 1 | 1 . . . Recycler 1 | 1 . . . Turret 2 | . . 2 . Swarmer 3 | . . 3 . Grunt 5 | . 4 1 . Artisan 1 | . . 1 . Subdweller 8 | . . 8 . Best Kill Streak 3 | 2 2 3 . Combat Bots Only 3 | . 2 3 . Max Kills in Single Turn 1 | 1 1 1 . Gunslinging . | . . . . Exploded . | . . . . Melee . | . . . . Uniques/NPCs Destroyed . | . . . . Combat | -11 -10 -10 -7 -------- Run | Yrd Mat Sub Rec Hostile Shots Fired 174 | . 28 89 57 Missed 53 | . 3 29 21 Hits 121 | . 25 60 36 Projectile 121 | . 25 60 36 Critical Strikes 2 | . 1 1 . Damage Taken 1527 | . 336 901 290 Core 354 | . 54 168 132 Absorbed by Shields . | . . . . Core Remaining (%) 100 | 100 . . . Volleys Fired 132 | 11 29 89 3 Largest 2 | 2 2 2 1 Hottest 138 | 40 40 138 30 Shots Fired 258 | 22 58 175 3 Gun 232 | 22 58 149 3 Cannon 23 | . . 23 . Launcher . | . . . . Special 3 | . . 3 . Kinetic 193 | 22 58 110 3 Thermal 21 | . . 21 . Explosive . | . . . . Electromagnetic 44 | . . 44 . Robot Hit Streak 23 | 6 14 23 5 Robot Miss Streak 4 | 4 3 3 . Penetration Max . | . . . . Secondary Targets . | . . . . Shots Hit Robots 150 | 12 44 88 6 Core Hits 52 | 7 19 26 . Critical Kills 1 | . . 1 . Critical Parts Destroyed 1 | . 1 . . Critical Strikes 4 | . 1 3 . Burn 2 | . . 2 . Destroy 2 | . 1 1 . Melee Attacks 13 | . . 8 5 Impact 8 | . . 8 . Slashing 5 | . . . 5 Piercing . | . . . . Sneak Attacks 2 | . . 1 1 Combat Hostiles . | . . . . Follow-up Attacks . | . . . . Damage Inflicted 1833 | 98 366 1151 218 Guns 1267 | 98 366 739 64 Cannons 334 | . . 334 . Explosions . | . . . . Melee 232 | . . 78 154 Ramming . | . . . . Kinetic 1054 | 98 366 526 64 Thermal 116 | . . 116 . Explosive . | . . . . Electromagnetic 431 | . . 431 . Impact 78 | . . 78 . Slashing 154 | . . . 154 Piercing . | . . . . Highest Corruption . | . . . . Average Corruption . | . . . . Corruption Purged . | . . . . Corruption Blocked . | . . . . Overload Shots . | . . . . Overflow Damage 5 | . . 5 . Projectiles 5 | . . 5 . Explosions . | . . . . Melee . | . . . . Knockbacks . | . . . . Impact . | . . . . Kinetic . | . . . . Secondary . | . . . . Self-Inflicted Damage . | . . . . Shots . | . . . . Rammed . | . . . . Targets Rammed . | . . . . Kicked . | . . . . Crushed . | . . . . Highest Temperature 36 | . 31 36 2 Average Temperature 14 | . 14 16 2 Received Heat Transfer 615 | . 207 306 102 Siege Activations . | . . . . Martial Activations . | . . . . Shielding Activations . | . . . . Robots Disrupted . | . . . . Combat Hostiles . | . . . . Robots Corrupted . | . . . . Combat Hostiles . | . . . . Parts Fried 2 | . . 2 . Impact Corruptions . | . . . . Robots Melted . | . . . . Combat Hostiles . | . . . . Parts Melted 1 | . . 1 . Heat Transferred 444 | . . 444 . Parts Sabotaged . | . . . . Parts Stolen . | . . . . Parts Stripped . | . . . . Power Chain Reactions . | . . . . Alert | -11 -10 -10 -7 ------- Run | Yrd Mat Sub Rec Maximum Alert Level . | . . . . Low Security (%) 100 | 100 100 . 100 Level 1 . | . . . . Level 2 . | . . . . Level 3 . | . . . . Level 4 . | . . . . Level 5 . | . . . . High Security . | . . . . Max Security . | . . . . Peak Influence 158 | 10 50 . 158 Initial 158 | . 6 . 158 Average 29 | 2 17 . 142 Influence Increases 555 | 20 105 430 . Destroy 0b10 Robot/C 200 | . 80 120 . Destroy 0b10 Robot/NC 25 | 20 5 . . Destroy Leader 30 | . 20 10 . Lose Combat Pursuer 300 | . . 300 . Influence Decreases 447 | 10 100 115 222 Entered New Map 184 | . 4 8 172 Time Decay 233 | 10 96 97 30 Lost Part 30 | . . 10 20 Squads Dispatched . | . . . . Investigation . | . . . . Extermination . | . . . . Reinforcement . | . . . . Assault . | . . . . Garrison . | . . . . Intercept . | . . . . Searches Triggered . | . . . . Construction Impeded . | . . . . Haulers Reinforced . | . . . . Active Scanning Responses . | . . . . Cargo Convoy Interrupts . | . . . . Stealth | -11 -10 -10 -7 --------- Run | Yrd Mat Sub Rec Distress Signals . | . . . . Communications Jammed . | . . . . Distress Signals . | . . . . Times Spotted 30 | . 4 25 1 Peak Tracking Total 5 | . 2 5 1 Tactical Retreats 5 | . . 5 . Traps | -11 -10 -10 -7 ------- Run | Yrd Mat Sub Rec Traps Triggered . | . . . . Indirectly . | . . . . Trap Hack Attempts . | . . . . Triggered . | . . . . Disarmed . | . . . . Reprogrammed . | . . . . Reused . | . . . . Traps Extracted . | . . . . Installed . | . . . . Triggered . | . . . . Most Traps Carried 2 | . . 2 2 Machines | -11 -10 -10 -7 ---------- Run | Yrd Mat Sub Rec Machines Disabled 1 | . . 1 . Max in Single Turn 1 | . . 1 . Machines Repaired . | . . . . Machines Dismantled . | . . . . Machines Sabotaged . | . . . . Overloaded Fab Kills . | . . . . Hacking | -11 -10 -10 -7 --------- Run | Yrd Mat Sub Rec Machines Accessed . | . . . . Terminals . | . . . . Fabricators . | . . . . Repair Stations . | . . . . Recycling Units . | . . . . Scanalyzers . | . . . . Garrison Access . | . . . . Total Hacks . | . . . . Successful . | . . . . Failed . | . . . . Catastrophic . | . . . . Database Lockouts . | . . . . Manual 5 | . 5 . . Terminals . | . . . . Fabricators . | . . . . Repair Stations . | . . . . Recycling Units . | . . . . Scanalyzers . | . . . . Garrison Access . | . . . . Terminal Hacks . | . . . . Fabricator Hacks . | . . . . Repair Station Hacks . | . . . . Recycling Unit Hacks . | . . . . Scanalyzer . | . . . . Garrison Access Hacks . | . . . . Unauthorized Hacks . | . . . . Terminals . | . . . . Fabricators . | . . . . Repair Stations . | . . . . Recycling Units . | . . . . Scanalyzers . | . . . . Garrison Access . | . . . . Data Cores Recovered . | . . . . Used . | . . . . Hacking Detections . | . . . . Full Trace Events . | . . . . Feedback Events . | . . . . Feedback Blocked . | . . . . Robot Schematics Acquired . | . . . . Robots Built . | . . . . Authchips . | . . . . Time . | . . . . Total Robot Build Rating . | . . . . Part Schematics Acquired . | . . . . Parts Built . | . . . . Authchips . | . . . . Time . | . . . . Total Part Build Rating . | . . . . Part Studies Acquired . | . . . . Parts Repaired . | . . . . Time . | . . . . Parts Recycled . | . . . . Recycled Matter . | . . . . Retrieved Matter . | . . . . Retrieved Components . | . . . . Parts Scanalyzed . | . . . . Part Schematics Acquired . | . . . . Parts Damaged . | . . . . Bothacking | -11 -10 -10 -7 ------------ Run | Yrd Mat Sub Rec Used RIF Installer . | . . . . Robots Hacked . | . . . . Non-combat . | . . . . Combat . | . . . . Robot Hacks Applied . | . . . . Relay Couplers Released . | . . . . Fabnet Peak Effective % . | . . . . Robots Rewired . | . . . . Allies Hacked . | . . . . Hacks Repelled . | . . . . Allies | -11 -10 -10 -7 -------- Run | Yrd Mat Sub Rec Total Allies . | . . . . Largest Group . | . . . . Highest-Rated Group . | . . . . Highest-Rated Ally . | . . . . Total Orders . | . . . . Ally Attacks . | . . . . Total Damage . | . . . . Kills . | . . . . Allies Corrupted . | . . . . Allies Melted . | . . . . X0-1V1 Amusement Gains 45 | . 17 28 . Good Acts 18 | . . 18 . Bad Acts 26 | . . 26 . Intel | -11 -10 -10 -7 ------- Run | Yrd Mat Sub Rec Active Infowar (turns) . | . . . . Robot Analysis Total . | . . . . Derelict Logs Recovered 1 | . . 1 . Drone Launches . | . . . . Drone Recoveries . | . . . . Exploration | -11 -10 -10 -7 ------------- Run | Yrd Mat Sub Rec Turns Passed 2248 | 113 294 1780 61 Spaces Moved 869 | 57 132 640 40 Core 17 | 17 . . . Treads 317 | 40 132 145 . Legs . | . . . . Wheels 33 | . . 33 . Hover . | . . . . Flight 502 | . . 462 40 Fastest Speed 50 | 50 160 99 102 Average Speed 131 | 127 160 127 102 Slowest Speed 167 | 160 160 167 102 Overloaded Moves . | . . . . Propulsion Burnouts . | . . . . Robots Hopped . | . . . . Potential Cave-ins . | . . . . Cave-ins Triggered . | . . . . Exploration Rate (%) 18 | 4 32 27 11 Regions Visited 3 Branch Regions 2 Pre-discovered Areas . | . . . . Known Exits Taken . | . . . . Unknown Exits Taken 3 | 1 1 1 . Scrap Searched . | . . . . Spaces Dug . | . . . . Terrain Destroyed . | . . . . Melee . | . . . . Projectile . | . . . . AOE . | . . . . Terrain Rammed . | . . . . Walls Destroyed . | . . . . Machines Disabled . | . . . . Actions | -11 -10 -10 -7 --------- Run | Yrd Mat Sub Rec Total 1718 | 80 168 1421 49 Wait 646 | . 1 645 . Move 866 | 56 131 639 40 Hop . | . . . . Pick Up 21 | 7 5 9 . Fast Attach 2 | . . 2 . Attach 8 | 6 1 . 1 Detach . | . . . . Swap 9 | . 1 8 . Drop 15 | . . 15 . Fire 132 | 11 29 89 3 Melee 13 | . . 8 5 Ram . | . . . . Kick . | . . . . Crush . | . . . . Escape Stasis . | . . . . Rewire . | . . . . Trap . | . . . . Miscellaneous 6 | . . 6 . Route ------- -11/Scrapyard -10/Materials (discovered 2 exits: [*Min] / [*Sub]) -10/Subcaves -7/Recycling History --------- Turn | Location | Event 12 | -11/Scrapyard | Discovered new exit (range 15) 114 | -11/Scrapyard | Entered Materials 277 | -10/Materials | Discovered new exit (range 13) 304 | -10/Materials | Build established: Mutant 340 | -10/Materials | Discovered new exit (range 9) 357 | -10/Materials | Prayed at D.C.S.S. Altar Unit 408 | -10/Materials | Entered Subcaves 409 | -10/Subcaves | Approached by a straggling Scientist 1017 | -10/Subcaves | Ambushed by angry Subdweller bent on revenge 1191 | -10/Subcaves | Learned 2 Materials zone layouts 1319 | -10/Subcaves | Forcibly received Sfc. Transmogifier from X0-1V1 1580 | -10/Subcaves | Shifting Twisted Machinery released Sub. Machine Gun 1715 | -10/Subcaves | Discovered new exit (range 10) 1727 | -10/Subcaves | Core integrity fell below 50% 2188 | -10/Subcaves | Entered Recycling 2240 | -7/Recycling | Core integrity fell below 20% 2249 | -7/Recycling | Destroyed by Y-54 Guardian with Gatling Laser Last Messages --------------- Dropped Arm. Wheel. Acquired Cobbler Unit. Protomatter-57, Lgt. Humpback tossed aside. X0-1V1 smiles upon you. (Received Explosive Trap x2) Subatomizers dissect the Disposable Heat Sink. Sfc. Transmogrifier converts Lgt. Fission Core into Imp. Deuterium Engine. Sfc. Transmogrifier converts Imp. EM Pulse Cannon into Chainsword. Subatomizers dissect the Lgt. Ion Engine. Acquired Sub. Machine Gun. LOCATION=UNKNOWN GOAL=ESCAPE Sneak attack on Y-54 Guardian. Y-54 Guardian springs to life. Imp. EM Pulse Cannon destroyed. Imp. Deuterium Engine destroyed. X0-1V1 chuckles heartily! Map ----- +----------------------------------------------------+ | ?????????????????????????????????????????? | | ???#####?????????????????????????????????? | | ???# #?????????????????????????????????? | | ?### #?????????????????????????????????? | | ?#// #?????????????????????????????????? | | ?#// #######???????????????????????????? | | ?#// ????????????????????? | | ?### #######???????????????????????????? | | ???# #?????????????????????????????????? | | ???# #?????????????????????????????????? | | ???# #######+###???????????????????????? | | ???# # ! ! !#???????????????????????? | | ???# # ! #???????????????????????? | | ?### # ! !!#???????????????????????? | | ?#== # !! #???????????????????????? | | ?#== #! #???????????????????????? | | ?#== # ! ! ! #???????????????????????? | | ?### + ! #???????????????????????? | | ???# # #???????????????????????? | | ???# ###########???????????????????????? | | ???# #????####?????????????????????????? | | ??## ##???#T"#?????????????????????????? | | ??# ##### "########+#### ?????????? | | ??# ????????? | | ??# ????????? | | ??# @ ????????? | | ??# #####+####Y##### u????????? | | ??#######??? ???##?????????????????????? | | ???????????? ??????????????????????????? | | ??????????? ?????????????????????????? | | ??????????? ?????????????????????????? | | ??????????# ????????????????????????? | | ??????????# ????????????????????????? | | ??????????# #???????????????????????? | | ??????????# #???????????????????????? | | ??????????# #???????????????????????? | | ??????????# #???????????????????????? | | ??????????# #???????????????????????? | | ??????????# #???????????????????????? | | ??????????# #???????????????????????? | | ???????????#####?????????????????????????? | | ?????????????????????????????????????????? | | ?????????????????????????????????????????? | | ?????????????????????????????????????????? | | ?????????????????????????????????????????? | | ?????????????????????????????????????????? | | ?????????????????????????????????????????? | | ?????????????????????????????????????????? | | ?????????????????????????????????????????? | | ?????????????????????????????????????????? | +----------------------------------------------------+ Best States ------------- Heat Dissipation 39 Energy Generation 18 Energy Capacity 300 Matter Stores 300 Matter Capacity 300 Sight Range 16 Terrain Scan Density 10 Evasion (%) 50 Targeting Accuracy 10 Recoil Reduction 2 Item Schematics ----------------- None Robot Schematics ------------------ None Fabricated ------------ Nothing Repaired ---------- Nothing Studied --------- None Alien Tech Used ----------------- None Achievements -------------- Chaos Is Inevitable Challenges ------------ None Game ------ Seed ConstructCompanionMapper Manual? 0 Play Time 00:15:57 Cumulative 352.7 hours Start 2026.06.26 @ 15:54:11 End 2026.06.26 @ 16:19:16 Sessions 1 Manual Loads 0 Difficulty Rogue Special Mode None Game No. 875 Rogue 873 Adventurer 2 Explorer 0 Win Type - Total 1 Types 1/0/0/0/0/0/0/0/0/0 Lore% 50 Gallery% 67 Achievement% 53 Wizard Run 0 Options --------- Layout 2 ASCII 0 Keyboard 0 Movement Mouse Keybinds 0 Fullscreen 1 Font 24/Smallcaps Map View 50x44 Zoom Use 0% Tactical HUD 0 Map Filters NONE Filters NONE Steam 1 RUN: 2dfb9291-2fec-47d1-8c5b-656ae73cd99d